[Event "FIDE Grand Prix Palma 2017"]
[Site "Palma de Mallorca"]
[Date "2017.11.22"]
[Round "6"]
[White "Nakamura, Hikaru"]
[Black "Ding, Liren"]
[Result "1/2-1/2"]
[ECO "D43"]
[WhiteElo "2780"]
[BlackElo "2774"]
[Annotator "RC"]
[PlyCount "41"]
[EventDate "2017.??.??"]
[EventType "swiss"]
[EventCountry "ESP"]
[SourceTitle "playchess.com"]
[Source "ChessBase"]
[SourceQuality "1"]
[TimeControl "40/6000+30:20/3000+30:900+30"]

1. d4 {[%emt 0:00:00]} Nf6 {[%emt 0:00:07]} 2. c4 {[%emt 0:00:00]} e6 {[%emt 0:00:05]} 3. Nf3 {[%emt 0:00:01]} d5 {[%emt 0:00:06]} 4. Nc3 {[%emt 0:00:05]} c6 {[%emt 0:00:06]} 5. g3 {[%emt 0:00:08]} dxc4 {[%emt 0:03:21]} 6. Bg2 {[%emt 0:00:10]} Nbd7 {[%emt 0:03:04]} 7. O-O {[%emt 0:00:25]} Be7 {[%emt 0:00:06]} 8. a4 {[%emt 0:00:19]} O-O {[%emt 0:01:28]} 9. a5 {[%emt 0:00:05]} Nd5 {[%emt 0:08:20]} 10. Bd2 {[%emt 0:00:54]} b5 {[%emt 0:10:39]} 11. axb6 {[%emt 0:00:19]} Qxb6 {[%emt 0:02:05]} 12. Na4 {[%emt 0:00:22]} Qd8 {[%emt 0:06:58]} 13. Qc2 {[%emt 0:20:18]} Ba6 {[%emt 0:02:49]} 14. Rfd1 {[%emt 0:05:17]} Bb5 {[%emt 0:01:26]} 15. e4 {[%emt 0:20:07]} Nb4 {[%emt 0:02:04]} 16. Bxb4 {[%emt 0:01:13]} Bxb4 {[%emt 0:00:05]} 17. d5 {[%emt 0:00:03]} cxd5 {[%emt 0:02:57]} 18. Nd4 {[%emt 0:01:12]} Bxa4 {[%emt 0:07:26]} 19. Rxa4 {[%emt 0:00:01]} Bc5 {[%emt 0:00:59]} 20. exd5 {[%emt 0:01:46]} Bxd4 {[%emt 0:29:07]} 21. Rxd4 {[%emt 0:04:07]} 1/2-1/2

[Event "FIDE Grand Prix Palma 2017"]
[Site "Palma de Mallorca"]
[Date "2017.11.23"]
[Round "7"]
[White "Rapport, Richard"]
[Black "Aronian, Levon"]
[Result "1/2-1/2"]
[ECO "A06"]
[WhiteElo "2692"]
[BlackElo "2801"]
[Annotator "RC"]
[PlyCount "157"]
[EventDate "2017.??.??"]
[EventType "swiss"]
[EventCountry "ESP"]
[SourceTitle "playchess.com"]
[Source "ChessBase"]
[SourceQuality "1"]
[TimeControl "40/6000+30:20/3000+30:900+30"]

1. Nf3 {[%emt 0:00:00]} d5 {[%emt 0:00:11]} 2. g3 {[%emt 0:00:00]} Nf6 {[%emt 0:00:16]} 3. Bg2 {[%emt 0:00:06]} e6 {[%emt 0:00:04]} 4. O-O {[%emt 0:00:08]} Be7 {[%emt 0:00:03]} 5. c4 {[%emt 0:00:48]} O-O {[%emt 0:00:07]} 6. d4 {[%emt 0:00:05]} dxc4 {[%emt 0:00:04]} 7. Qc2 {[%emt 0:00:12]} a6 {[%emt 0:00:11]} 8. a4 {[%emt 0:00:09]} Bd7 {[%emt 0:00:09]} 9. Rd1 {[%emt 0:00:09]} Bc6 {[%emt 0:00:11]} 10. Bg5 {[%emt 0:00:08]} a5 {[%emt 0:00:49]} 11. Nbd2 {[%emt 0:00:10]} Na6 {[%emt 0:00:52]} 12. Nxc4 {[%emt 0:00:10]} Nb4 {[%emt 0:00:03]} 13. Qb3 {[%emt 0:00:08]} Nd7 {[%emt 0:03:49]} 14. Bxe7 {[%emt 0:18:31]} Qxe7 {[%emt 0:00:05]} 15. Qa3 {[%emt 0:00:44]} Rfd8 {[%emt 0:05:20]} 16. Rac1 {[%emt 0:01:24]} Nd5 {[%emt 0:01:34]} 17. Qa1 {[%emt 0:10:10]} N5f6 {[%emt 0:11:37]} 18. b3 {[%emt 0:03:44]} Qb4 {[%emt 0:06:01]} 19. Ncd2 {[%emt 0:08:32]} Rac8 {[%emt 0:03:52]} 20. e3 {[%emt 0:08:48]} Ne4 {[%emt 0:15:03]} 21. Nc4 {[%emt 0:12:36]} Nd6 {[%emt 0:03:03]} 22. Ne1 {[%emt 0:02:03]} Bxg2 {[%emt 0:01:14]} 23. Kxg2 {[%emt 0:00:49]} Nxc4 {[%emt 0:11:37]} 24. bxc4 {[%emt 0:01:18]} Qe7 {[%emt 0:01:46]} 25. Nd3 {[%emt 0:10:19]} c5 {[%emt 0:01:10]} 26. Qa3 {[%emt 0:00:27]} Kf8 {[%emt 0:02:07]} 27. Qb3 {[%emt 0:01:37]} b6 {[%emt 0:03:15]} 28. Qb5 {[%emt 0:02:14]} cxd4 {[%emt 0:03:58]} 29. exd4 {[%emt 0:00:15]} Qd6 {[%emt 0:00:17]} 30. Nf4 {[%emt 0:06:35]} Qc6+ {[%emt 0:01:46]} 31. Qxc6 {[%emt 0:00:26]} Rxc6 {[%emt 0:00:04]} 32. d5 {[%emt 0:00:04]} Rd6 {[%emt 0:01:27]} 33. dxe6 {[%emt 0:01:50]} Nc5 {[%emt 0:00:46]} 34. e7+ {[%emt 0:00:05]} Kxe7 {[%emt 0:00:06]} 35. Nd5+ {[%emt 0:00:05]} Kf8 {[%emt 0:01:07]} 36. Ra1 {[%emt 0:00:06]} Rc8 {[%emt 0:00:39]} 37. Rdb1 {[%emt 0:02:27]} Nd7 {[%emt 0:00:50]} 38. Ne3 {[%emt 0:00:05]} Ne5 {[%emt 0:00:37]} 39. Rc1 {[%emt 0:02:09]} Rd2 {[%emt 0:01:19]} 40. Rcb1 {[%emt 0:00:00]} Nd3 {[%emt 0:18:46]} 41. Rf1 {[%emt 0:30:47]} g6 {[%emt 0:07:47]} 42. Ra3 {[%emt 0:12:37]} Rc6 {[%emt 0:02:19]} 43. Rb3 {[%emt 0:00:34]} Nc5 {[%emt 0:00:20]} 44. Ra3 {[%emt 0:00:26]} Ne4 {[%emt 0:00:50]} 45. Raa1 {[%emt 0:01:47]} Rf6 {[%emt 0:06:53]} 46. Ng4 {[%emt 0:00:48]} Rfd6 {[%emt 0:00:56]} 47. Ne3 {[%emt 0:00:39]} Rf6 {[%emt 0:09:31]} 48. Ng4 {[%emt 0:00:05]} Rf5 {[%emt 0:01:18]} 49. Rfd1 {[%emt 0:02:58]} Rc5 {[%emt 0:06:53]} 50. Rxd2 {[%emt 0:04:10]} Nxd2 {[%emt 0:00:05]} 51. Nf6 {[%emt 0:00:10]} Ke7 {[%emt 0:08:53]} 52. Nd5+ {[%emt 0:01:04]} Kd6 {[%emt 0:00:06]} 53. Rd1 {[%emt 0:00:54]} Nxc4 {[%emt 0:00:59]} 54. Nxb6+ {[%emt 0:00:08]} Kc6 {[%emt 0:01:05]} 55. Nd7 {[%emt 0:00:31]} Rd5 {[%emt 0:01:49]} 56. Rc1 {[%emt 0:00:49]} Rd4 {[%emt 0:03:26]} 57. Ne5+ {[%emt 0:00:21]} Kc5 {[%emt 0:00:04]} 58. Nxf7 {[%emt 0:03:51]} Kb4 {[%emt 0:00:04]} 59. Ng5 {[%emt 0:00:26]} Nd2 {[%emt 0:00:29]} 60. Ne6 {[%emt 0:00:00]} Rc4 {[%emt 0:02:30]} 61. Ra1 {[%emt 0:06:06]} Kb3 {[%emt 0:05:31]} 62. f4 {[%emt 0:01:21]} Kb2 {[%emt 0:00:47]} 63. Re1 {[%emt 0:00:34]} Rxa4 {[%emt 0:01:19]} 64. Re5 {[%emt 0:03:08]} Kc3 {[%emt 0:04:17]} 65. f5 {[%emt 0:03:46]} Nc4 {[%emt 0:01:37]} 66. Rc5 {[%emt 0:00:17]} gxf5 {[%emt 0:00:30]} 67. Kh3 {[%emt 0:00:42]} Ra2 {[%emt 0:02:03]} 68. Rxf5 {[%emt 0:00:48]} a4 {[%emt 0:00:22]} 69. Nc7 {[%emt 0:01:56]} Rd2 {[%emt 0:01:13]} 70. Rf8 {[%emt 0:03:52]} Rd7 {[%emt 0:10:17]} 71. Nb5+ {[%emt 0:00:34]} Kb4 {[%emt 0:00:23]} 72. Rb8 {[%emt 0:00:06]} Kc5 {[%emt 0:02:44]} 73. Nc3 {[%emt 0:02:15]} a3 {[%emt 0:00:03]} 74. Rb5+ {[%emt 0:00:52]} Kd4 {[%emt 0:00:43]} 75. Rb3 {[%emt 0:00:18]} Ke5 {[%emt 0:01:26]} 76. Rb5+ {[%emt 0:01:26]} Kd4 {[%emt 0:00:05]} 77. Rb3 {[%emt 0:00:04]} Ra7 {[%emt 0:01:17]} 78. Nb5+ {[%emt 0:00:12]} Kc5 {[%emt 0:00:04]} 79. Rxa3 {[%emt 0:00:46]} 1/2-1/2

[Event "FIDE Grand Prix Palma 2017"]
[Site "Palma de Mallorca"]
[Date "2017.11.24"]
[Round "8"]
[White "Gelfand, Boris"]
[Black "Radjabov, Teimour"]
[Result "0-1"]
[ECO "E18"]
[WhiteElo "2719"]
[BlackElo "2741"]
[Annotator "ChessBase"]
[PlyCount "96"]
[EventDate "2017.??.??"]
[EventType "swiss"]
[EventCountry "ESP"]
[SourceTitle "playchess.com"]
[Source "ChessBase"]
[SourceQuality "1"]
[TimeControl "40/6000+30:20/3000+30:900+30"]

1. d4 {[%emt 0:00:00]} Nf6 {[%emt 0:00:05]} 2. c4 {[%emt 0:00:00]} e6 {[%emt 0:00:06]} 3. Nf3 {[%emt 0:00:01]} b6 {[%emt 0:00:34]} 4. g3 {[%emt 0:01:04]} Bb7 {[%emt 0:00:04]} 5. Bg2 {[%emt 0:00:09]} Be7 {[%emt 0:00:05]} 6. O-O {[%emt 0:01:29]} O-O {[%emt 0:00:04]} 7. Nc3 {[%emt 0:00:14]} Ne4 {[%emt 0:00:26]} 8. Bd2 {[%emt 0:00:34]} Nxd2 {[%emt 0:00:18]} 9. Qxd2 {[%emt 0:01:17]} d6 {[%emt 0:01:23]} 10. Rad1 {[%emt 0:21:21]} Nd7 {[%emt 0:04:07]} 11. Rfe1 {[%emt 0:00:14]} c5 {[%emt 0:06:23]} 12. e4 {[%emt 0:16:20]} a6 {[%emt 0:05:46]} 13. d5 {[%emt 0:18:18]} e5 {[%emt 0:01:28]} 14. b3 {[%emt 0:01:00]} g6 {[%emt 0:03:25]} 15. Rf1 {[%emt 0:00:13]} Bc8 {[%emt 0:06:57]} 16. Ne1 {[%emt 0:02:16]} Rb8 {[%emt 0:04:29]} 17. a4 {[%emt 0:01:36]} f5 {[%emt 0:05:44]} 18. f4 {[%emt 0:00:26]} exf4 {[%emt 0:06:50]} 19. gxf4 {[%emt 0:01:46]} fxe4 {[%emt 0:04:46]} 20. Nxe4 {[%emt 0:00:22]} b5 {[%emt 0:02:31]} 21. a5 {[%emt 0:09:16]} bxc4 {[%emt 0:03:58]} 22. bxc4 {[%emt 0:01:00]} Rb4 {[%emt 0:02:37]} 23. Rc1 {[%emt 0:04:38]} Nf6 {[%emt 0:04:53]} 24. Ng5 {[%emt 0:08:03]} Qxa5 {[%emt 0:03:46]} 25. Nd3 {[%emt 0:04:55]} Ra4 {[%emt 0:02:28]} 26. Qe3 {[%emt 0:00:39]} Qd8 {[%emt 0:01:56]} 27. Rce1 {[%emt 0:01:12]} Bf5 {[%emt 0:07:09]} 28. Bh3 {[%emt 0:02:43]} Nxd5 {[%emt 0:07:19]} 29. cxd5 {[%emt 0:01:56]} Bxg5 {[%emt 0:00:49]} 30. Bxf5 {[%emt 0:00:59]} Rxf5 {[%emt 0:00:23]} 31. Qe6+ {[%emt 0:03:58]} Kg7 {[%emt 0:02:26]} 32. fxg5 {[%emt 0:00:06]} Qxg5+ {[%emt 0:01:04]} 33. Kh1 {[%emt 0:00:01]} Ra2 {[%emt 0:02:17]} 34. Qe7+ {[%emt 0:02:57]} Qxe7 {[%emt 0:05:57]} 35. Rxe7+ {[%emt 0:00:01]} Kf8 {[%emt 0:02:22]} 36. Ree1 {[%emt 0:03:30]} Rxf1+ {[%emt 0:05:02]} 37. Rxf1+ {[%emt 0:00:00]} Ke7 {[%emt 0:00:06]} 38. Re1+ {[%emt 0:01:26]} Kd7 {[%emt 0:02:27]} 39. Re3 {[%emt 0:00:06]} a5 {[%emt 0:02:56]} 40. Rh3 {[%emt 0:00:00]} h5 {[%emt 0:03:38]} 41. Nf4 {[%emt 0:02:18]} a4 {[%emt 0:07:25]} 42. Nxg6 {[%emt 0:06:24]} a3 {[%emt 0:02:37]} 43. Rf3 {[%emt 0:12:05]} c4 {[%emt 0:03:20]} 44. Nf4 {[%emt 0:11:39]} Ra1+ {[%emt 0:03:19]} 45. Kg2 {[%emt 0:01:21]} a2 {[%emt 0:02:11]} 46. Ra3 {[%emt 0:00:15]} c3 {[%emt 0:00:43]} 47. Ne2 {[%emt 0:09:19]} c2 {[%emt 0:01:19]} 48. Kf2 {[%emt 0:00:33]} Rh1 {[%emt 0:02:07]} 0-1